lending/lending_fUSD_20251114
["ID","MTS","AMOUNT","RATE_DAILY","PERIOD"]
[393920760,1763096455111,-500.0,0.00044381,30]
[393920761,1763096455162,-274.83482044,0.000444,120]
[393920762,1763096455212,-500.0,0.00044655,30]
[393920763,1763096455262,-594.23,0.00044845,120]
[393920764,1763096455309,-200.0,0.00044928,120]
[393920765,1763096455359,-500.0,0.00044929,30]
[393920766,1763096455412,-500.0,0.00045203,30]
[393920767,1763096455460,-175.31,0.00045205,120]
[393920768,1763096455638,-500.0,0.00045477,30]
[393920769,1763096455690,-500.0,0.00045751,30]
[393920770,1763096455747,-274.83482044,0.000458,120]
[393920771,1763096455799,-703.85,0.00046017,30]
[393920772,1763096455852,-500.0,0.00046025,30]
[393920773,1763096455902,-500.0,0.00046298,30]
[393920774,1763096455952,-228.11,0.00046572,30]
[393920775,1763096456001,-150.0,0.00046583,120]
[393920776,1763096456054,-264864.29552218,0.00047,120]
[393920777,1763096458999,-153.24,0.000351,30]
[393920778,1763096459079,-153.24,0.000401,30]
[393920780,1763096459160,-735135.70447782,0.00047,120]
[393920781,1763096459212,-1000000.0,0.00048,120]
[393920782,1763096459259,-150.0,0.00048,120]
[393920783,1763096459308,-900000.0,0.00048,120]
[393920784,1763096459354,-699.91,0.00048261,30]
[393920785,1763096459402,-699.91,0.00048261,30]
[393920786,1763096459451,-369.85,0.00048398,30]
[393920787,1763096459498,-369.86,0.00048398,30]
[393920788,1763096459544,-150.0,0.00048398,30]
[393920789,1763096459592,-169.81,0.00048398,30]
[393920790,1763096459647,-1208.02,0.00048398,30]
[393920791,1763096459697,-831.96,0.00048398,30]
[393920792,1763096459748,-150.0,0.00048398,30]
[393920793,1763096459796,-1208.02,0.00048398,30]
[393920794,1763096459843,-612.78,0.00048398,30]
[393920795,1763096459894,-150.0,0.00048398,30]
[393920796,1763096459941,-177.26,0.00048398,30]
[393920797,1763096459988,-177.26,0.00048398,30]
[393920798,1763096460034,-200.0,0.00048443,120]
[393920799,1763096460084,-317.71,0.00048672,30]
[393920800,1763096460134,-500.0,0.00048767,120]
[393920801,1763096460184,-500.0,0.00048767,120]
[393920802,1763096460236,-579.97679565,0.00048767,120]
[393920803,1763096460292,-1000000.0,0.00049,120]
[393920804,1763096460342,-1000000.0,0.00049,120]
[393920805,1763096460395,-355335.48872653,0.00049,120]
[393920806,1763096469101,1000.0,0.00016514,2]
[393920808,1763096474393,-699.95,0.00046098,30]
[393920809,1763096474450,-965.29490869,0.00048671,30]
[393920810,1763096474501,-600.0,0.00048999,120]
[393920811,1763096474551,-600.0,0.00048999,120]
[393920812,1763096474601,-600.0,0.00048999,120]
[393920813,1763096474653,-600.0,0.00048999,120]
[393920814,1763096474707,-600.0,0.00048999,120]
[393920815,1763096474761,-600.0,0.00048999,120]
[393920816,1763096474810,-600.0,0.00048999,120]
[393920817,1763096474869,-644664.51127347,0.00049,120]
[393920818,1763096474920,-301.22,0.0004922,30]
[393920819,1763096474973,-150.0,0.00049312,30]
[393920820,1763096475024,-150.0,0.00049312,30]
[393920821,1763096475075,-150.0,0.00049312,30]
[393920822,1763096475126,-155.64360988,0.00049315,33]
[393920823,1763096475180,-500.0,0.00049315,33]
[393920824,1763096475232,-1000.0,0.00049571,30]
[393920825,1763096475284,-1000.0,0.00049653,30]
[393920826,1763096475336,-150.0,0.00049787,30]
[393920827,1763096475386,-1000.0,0.00049803,30]
[393920828,1763096475437,-150.0,0.00049821,30]
[393920829,1763096475489,-594.23,0.00049892,120]
[393920830,1763096475544,-1000000.0,0.0005,120]
[393920831,1763096475598,-1000000.0,0.0005,120]
[393920832,1763096475658,-1000000.0,0.0005,120]
[393920833,1763096475712,-1000000.0,0.0005,120]
[393920834,1763096475766,-344169.15020796,0.0005,120]
[393920835,1763096479871,-600.0,0.00048999,120]
[393920836,1763096479924,-600.0,0.00048999,120]
[393920837,1763096479979,-600.0,0.00048999,120]
[393920838,1763096480028,-600.0,0.00048999,120]
[393920839,1763096480076,-600.0,0.00048999,120]
[393920840,1763096480124,-600.0,0.00048999,120]
[393920841,1763096480215,-600.0,0.00048999,120]
[393920842,1763096480264,-600.0,0.00048999,120]
[393920843,1763096480313,-600.0,0.00048999,120]
[393920844,1763096480361,-384.96377,0.000499,30]
[393920845,1763096480413,-655830.84979204,0.0005,120]
[393920846,1763096480467,-1000000.0,0.0005,120]
[393920847,1763096480517,-1000000.0,0.0005,120]
[393920848,1763096480568,-1000000.0,0.0005,120]
[393920849,1763096480619,-1000000.0,0.0005,120]
[393920850,1763096480667,-895.06961868,0.00050009,30]
[393920851,1763096480715,-150.0,0.00050116,30]
[393920852,1763096480762,-150.0,0.0005014,30]
[393920853,1763096480811,-1000.0,0.00050294,30]
[393920854,1763096480857,-150.0,0.0005035,30]
[393920855,1763096480907,-1000.0,0.0005039,30]
[393920856,1763096480957,-1000.0,0.00050548,30]
[393920857,1763096481006,-150.0,0.00050585,30]
[393920858,1763096481054,-1000.0,0.00050692,30]
[393920859,1763096481103,-1000.0,0.00050693,30]
[393920860,1763096481152,-150.0,0.00050711,30]
[393920861,1763096481200,-1000.0,0.00050723,30]
[393920862,1763096481248,-1000.0,0.00050779,30]
[393920863,1763096481296,-1000.0,0.00050784,30]
[393920864,1763096481344,-150.0,0.00050789,30]
[393920865,1763096481390,-206.532,0.00050804,120]
[393920866,1763096481436,-2145.0,0.00050804,120]
[393920867,1763096481485,-150.0,0.00050818,30]
[393920868,1763096481534,-1000.0,0.00050897,30]
[393920869,1763096481583,-1000.0,0.000509,30]
[393920870,1763096481631,-150.0,0.00050937,30]
[393920871,1763096481680,-150.0,0.00050994,30]
[393920872,1763096481733,-323787.58481928,0.00051,120]
[393920874,1763096485018,-600.0,0.00048999,120]
[393920875,1763096485071,-600.0,0.00048999,120]
[393920876,1763096485125,-618.99748471,0.00048999,120]
[393920877,1763096485183,-462.63615277,0.00050994,120]
[393920878,1763096485239,-676212.41518072,0.00051,120]
[393920879,1763096485294,-1000000.0,0.00051,120]
[393920880,1763096485352,-1000000.0,0.00051,120]
[393920881,1763096485414,-1000000.0,0.00051,120]
[393920882,1763096485470,-1000000.0,0.00051,120]
[393920883,1763096485521,-151.0,0.00051,120]
[393920884,1763096485570,-150.0,0.00051046,30]
[393920885,1763096485624,-150.0,0.0005107,30]
[393920886,1763096485681,-1000.0,0.00051083,30]
[393920887,1763096485733,-150.0,0.00051122,30]
[393920888,1763096485784,-150.0,0.00051207,30]
[393920889,1763096485847,-1000.0,0.00051211,30]
[393920890,1763096485912,-150.0,0.00051256,30]
[393920891,1763096485966,-150.0,0.00051264,30]
[393920892,1763096486023,-1000.0,0.00051287,30]
[393920893,1763096486079,-150.0,0.00051329,30]
[393920894,1763096486134,-1000.0,0.00051376,30]
[393920895,1763096486190,-1000.0,0.00051379,30]
[393920896,1763096486243,-1000.0,0.0005138,30]
[393920897,1763096486294,-150.0,0.00051409,30]
[393920898,1763096486347,-150.0,0.00051429,30]
[393920899,1763096486398,-1000.0,0.00051456,30]
[393920900,1763096486454,-313004.9511818,0.000515,120]
[393920901,1763096489937,-686995.0488182,0.000515,120]
[393920902,1763096489997,-1000000.0,0.000515,120]
[393920903,1763096490051,-865226.0,0.000515,120]
[393920904,1763096490100,-150.0,0.00051507,30]
[393920905,1763096490150,-993.0,0.00051532,30]
[393920906,1763096490199,-1000.0,0.00051667,30]
[393920907,1763096490251,-150.0,0.00051727,30]
[393920908,1763096490304,-1000.0,0.00051759,30]
[393920909,1763096490354,-150.0,0.00051794,30]
[393920910,1763096490403,-300.0,0.000518,120]
[393920911,1763096490451,-300.0,0.000518,120]
[393920912,1763096490499,-150.0,0.00051801,30]
[393920913,1763096490550,-150.0,0.00051804,30]
[393920914,1763096490600,-1000.0,0.00051848,30]
[393920915,1763096490660,-150.0,0.00051869,30]
[393920916,1763096490713,-300.0,0.000519,52]
[393920917,1763096490763,-300.0,0.000519,60]
[393920918,1763096490818,-300.0,0.000519,120]
[393920919,1763096490868,-300.0,0.000519,52]
[393920920,1763096490922,-300.0,0.000519,60]
[393920921,1763096490971,-300.0,0.000519,120]
[393920922,1763096491153,-1000.0,0.00051917,30]
[393920923,1763096491203,-200.0,0.00051957,120]
[393920924,1763096491250,-150.0,0.00051977,30]
[393920925,1763096491296,-150.0,0.00051993,30]
[393920926,1763096491346,-967427.0,0.00052,120]
[393920927,1763096491391,-300.0,0.00052,30]
[393920928,1763096491437,-300.0,0.00052,120]
[393920929,1763096491484,-300.0,0.00052,30]
[393920930,1763096491540,-300.0,0.00052,120]
[393920931,1763096491590,-300.0,0.00052,30]
[393920932,1763096491638,-169.4,0.00052,30]
[393920933,1763096491691,-1000000.0,0.00052,120]
[393920934,1763096491743,-1000.0,0.00052012,30]
[393920935,1763096491792,-289.42773263,0.00052092,30]
[393920936,1763096491840,-1000.0,0.00052116,30]
[393920937,1763096491889,-300.0,0.000522,120]
[393920938,1763096491937,-300.0,0.000522,120]
[393920939,1763096491985,-150.0,0.000522,30]
[393920940,1763096492032,-150.0,0.00052227,30]
[393920941,1763096492083,-1000.0,0.0005223,30]
[393920942,1763096492133,-150.0,0.00052292,30]
[393920943,1763096492184,-1000.0,0.00052299,30]
[393920944,1763096492234,-150.0,0.00052339,30]
[393920945,1763096492284,-1000.0,0.00052349,30]
[393920946,1763096492332,-1000.0,0.00052384,30]
[393920947,1763096492382,-300.0,0.000524,120]
[393920948,1763096492429,-300.0,0.000524,120]
[393920949,1763096492475,-150.0,0.00052455,30]
[393920950,1763096492522,-150.0,0.00052465,30]
[393920951,1763096492571,-1000.0,0.00052499,30]
[393920952,1763096492619,-300.0,0.000525,120]
[393920953,1763096492671,-300.0,0.000525,120]
[393920954,1763096492727,-459900.12344917,0.000525,120]
[393920955,1763096495474,-152.403,0.000337,36]
[393920956,1763096495524,-2441.076,0.000337,36]
[393920957,1763096495636,-694.43,0.00046098,30]
[393920958,1763096495689,-373.32399279,0.00051922,30]
[393920959,1763096495744,-540099.87655083,0.000525,120]
[393920960,1763096495795,-1000000.0,0.000525,120]
[393920961,1763096495843,-1000.0,0.00052526,30]
[393920962,1763096495891,-353.89052289,0.00052552,30]
[393920963,1763096495939,-300.0,0.000526,97]
[393920964,1763096495986,-300.0,0.000526,120]
[393920965,1763096496035,-300.0,0.000526,97]
[393920966,1763096496082,-300.0,0.000526,120]
[393920967,1763096496136,-150.0,0.00052608,30]
[393920968,1763096496186,-1000.0,0.00052643,30]
[393920969,1763096496234,-150.0,0.00052677,30]
[393920970,1763096496282,-150.0,0.00052687,30]
[393920971,1763096496329,-300.0,0.000527,120]
[393920972,1763096496377,-300.0,0.000527,120]
[393920973,1763096496425,-150.0,0.00052725,30]
[393920974,1763096496472,-150.0,0.00052734,30]
[393920975,1763096496524,-1007.0,0.00052756,30]
[393920976,1763096496574,-2441.076,0.00052775,97]
[393920977,1763096496622,-150.0,0.00052782,30]
[393920978,1763096496672,-300.0,0.000528,120]
[393920979,1763096496722,-300.0,0.000528,120]
[393920980,1763096496773,-1000.0,0.0005283,30]
[393920981,1763096496824,-506.89,0.00052833,120]
[393920982,1763096496879,-500.0,0.00052833,120]
[393920983,1763096496929,-511.86,0.00052833,120]
[393920984,1763096496977,-500.0,0.00052833,120]
[393920985,1763096497025,-500.0,0.00052833,120]
[393920986,1763096497074,-500.0,0.00052833,120]
[393920987,1763096497121,-500.0,0.00052833,120]
[393920988,1763096497174,-500.0,0.00052833,120]
[393920989,1763096497221,-500.0,0.00052833,120]
[393920990,1763096497267,-500.0,0.00052833,120]
[393920991,1763096497312,-500.0,0.00052833,120]
[393920992,1763096497359,-500.0,0.00052833,120]
[393920993,1763096497404,-500.0,0.00052833,120]
[393920994,1763096497450,-500.0,0.00052833,120]
[393920995,1763096497498,-500.0,0.00052833,120]
[393920996,1763096497544,-500.0,0.00052833,120]
[393920997,1763096497591,-500.0,0.00052833,120]
[393920998,1763096497638,-500.0,0.00052833,120]
[393920999,1763096497906,-500.0,0.00052833,120]
[393921001,1763096497957,-500.0,0.00052833,120]
[393921002,1763096498009,-500.0,0.00052833,120]
[393921003,1763096498058,-500.0,0.00052833,120]
[393921004,1763096498108,-500.0,0.00052833,120]
[393921005,1763096498157,-500.0,0.00052833,120]
[393921006,1763096498207,-500.0,0.00052833,120]
[393921007,1763096498256,-500.0,0.00052833,120]
[393921008,1763096498304,-500.0,0.00052833,120]
[393921009,1763096498353,-500.0,0.00052833,120]
[393921010,1763096498403,-500.0,0.00052833,120]
[393921011,1763096498456,-500.0,0.00052833,120]
[393921012,1763096498509,-500.0,0.00052833,120]
[393921013,1763096498560,-500.0,0.00052833,120]
[393921014,1763096498611,-500.0,0.00052833,120]
[393921015,1763096498667,-500.0,0.00052833,120]
[393921016,1763096498721,-421.53,0.00052833,120]
[393921017,1763096498773,-500.0,0.00052833,120]
[393921018,1763096498825,-500.0,0.00052833,120]
[393921019,1763096498878,-500.0,0.00052833,120]
[393921020,1763096498931,-500.0,0.00052833,120]
[393921021,1763096498983,-500.0,0.00052833,120]
[393921022,1763096499034,-500.0,0.00052833,120]
[393921023,1763096499088,-500.0,0.00052833,120]
[393921024,1763096499139,-500.0,0.00052833,120]
[393921025,1763096499189,-500.0,0.00052833,120]
[393921026,1763096499237,-500.0,0.00052833,120]
[393921027,1763096499288,-500.0,0.00052833,120]
[393921028,1763096499336,-500.0,0.00052833,120]
[393921029,1763096499386,-500.0,0.00052833,120]
[393921030,1763096499436,-500.0,0.00052833,120]
[393921031,1763096499484,-500.0,0.00052833,120]
[393921032,1763096499532,-500.0,0.00052833,120]
[393921033,1763096499580,-500.0,0.00052833,120]
[393921034,1763096499629,-500.0,0.00052833,120]
[393921035,1763096499678,-500.0,0.00052833,120]
[393921036,1763096499729,-469.4,0.00052833,120]
[393921037,1763096499782,-1000.0,0.00052864,30]
[393921038,1763096499835,-1000.0,0.00052874,30]
[393921039,1763096499888,-1000.0,0.00052878,30]
[393921040,1763096499940,-1000.0,0.00052882,30]
[393921041,1763096499989,-300.0,0.000529,120]
[393921042,1763096500041,-300.0,0.000529,120]
[393921043,1763096500089,-1000.0,0.00052961,30]
[393921044,1763096500137,-1229.21,0.00053,30]
[393921045,1763096500185,-1000.0,0.00053,120]
[393921046,1763096500232,-150.0,0.00053,30]
[393921047,1763096500282,-1000000.0,0.00053,120]
[393921048,1763096500330,-1000000.0,0.00053,120]
[393921049,1763096500382,-300.0,0.000531,120]
[393921050,1763096500428,-300.0,0.000531,120]
[393921051,1763096500475,-150.0,0.00053145,30]
[393921052,1763096500523,-514.34211317,0.00053149,120]
[393921053,1763096500569,-256.15118969,0.00053149,120]
[393921054,1763096500617,-525.86561493,0.00053149,120]
[393921055,1763096500666,-300.0,0.000532,30]
[393921056,1763096500713,-300.0,0.000532,120]
[393921057,1763096500759,-300.0,0.000532,30]
[393921058,1763096500805,-300.0,0.000532,120]
[393921059,1763096500852,-300.0,0.000532,30]
[393921060,1763096500899,-943.0,0.00053284,30]
[393921061,1763096500945,-150.0,0.00053297,30]
[393921062,1763096500992,-300.0,0.000533,30]
[393921063,1763096501040,-300.0,0.000533,120]
[393921064,1763096501086,-300.0,0.000533,30]
[393921065,1763096501135,-300.0,0.000533,120]
[393921066,1763096501181,-300.0,0.000533,30]
[393921067,1763096501227,-1000.0,0.00053333,30]
[393921068,1763096501273,-1000.0,0.0005336,30]
[393921069,1763096501320,-150.0,0.00053366,30]
[393921070,1763096501365,-500.0,0.00053399,120]
[393921071,1763096501412,-500.0,0.00053399,120]
[393921072,1763096501459,-156.16038187,0.00053399,120]
[393921073,1763096501504,-500.0,0.00053399,120]
[393921074,1763096501551,-500.0,0.00053399,120]
[393921075,1763096501597,-500.0,0.00053399,120]
[393921076,1763096501645,-150.0,0.00053399,120]
[393921077,1763096501692,-500.0,0.00053399,120]
[393921078,1763096501741,-500.0,0.00053399,120]
[393921079,1763096501788,-150.0,0.00053399,120]
[393921080,1763096501837,-300.0,0.000534,90]
[393921081,1763096501885,-300.0,0.000534,120]
[393921082,1763096501934,-300.0,0.000534,90]
[393921083,1763096501988,-300.0,0.000534,120]
[393921084,1763096502044,-993.0,0.00053404,30]
[393921085,1763096502094,-150.0,0.00053407,30]
[393921086,1763096502142,-172.524,0.00053424,120]
[393921087,1763096502189,-500.0,0.00053426,120]
[393921088,1763096502236,-500.0,0.00053426,120]
[393921089,1763096502282,-500.0,0.00053426,120]
[393921090,1763096502328,-500.0,0.00053426,120]
[393921091,1763096502376,-500.0,0.00053426,120]
[393921092,1763096502434,-150.0,0.00053426,120]
[393921093,1763096502491,-500.0,0.00053426,120]
[393921094,1763096502546,-500.0,0.00053426,120]
[393921095,1763096502594,-150.0,0.00053426,120]
[393921096,1763096502642,-155.74859708,0.00053454,120]
[393921097,1763096502690,-301.06611084,0.00053454,120]
[393921098,1763096502738,-500.0,0.00053454,120]
[393921099,1763096502791,-617.04592018,0.00053454,120]
[393921100,1763096502838,-500.0,0.00053454,120]
[393921101,1763096502887,-150.0,0.00053454,120]
[393921102,1763096502937,-500.0,0.00053454,120]
[393921103,1763096502986,-500.0,0.00053454,120]
[393921104,1763096503033,-150.0,0.00053454,120]
[393921105,1763096503087,-155.18064126,0.00053481,120]
[393921106,1763096503139,-614.4734072,0.00053481,120]
[393921107,1763096503189,-150.0,0.00053481,120]
[393921108,1763096503239,-500.0,0.00053481,120]
[393921109,1763096503299,-452.82249942,0.00053481,120]
[393921110,1763096503350,-150.0,0.00053481,120]
[393921111,1763096503398,-300.0,0.000535,30]
[393921112,1763096503446,-300.0,0.000535,30]
[393921113,1763096503492,-300.0,0.000535,30]
[393921114,1763096503540,-358.850735,0.000535,120]
[393921115,1763096503594,-1000.0,0.00053505,30]
[393921116,1763096503652,-272.73712267,0.00053509,120]
[393921117,1763096503711,-500.0,0.00053509,120]
[393921118,1763096503763,-163.12904844,0.00053509,120]
[393921119,1763096503817,-286.09250165,0.00053536,120]
[393921120,1763096503872,-1000.0,0.00053564,30]
[393921121,1763096503929,-150.0,0.00053579,30]
[393921122,1763096503992,-150.0,0.0005359,30]
[393921123,1763096504048,-300.0,0.000536,120]
[393921124,1763096504105,-300.0,0.000536,120]
[393921125,1763096504161,-114503.07942166,0.000536,120]
[393921126,1763096504220,-1000.0,0.00053627,30]
[393921127,1763096504272,-150.0,0.00053657,30]
[393921128,1763096504322,-1000.0,0.00053694,30]
[393921129,1763096504376,-1000.0,0.00053699,30]
[393921130,1763096504430,-300.0,0.000537,30]
[393921131,1763096504482,-300.0,0.000537,120]
[393921132,1763096504534,-300.0,0.000537,30]
[393921133,1763096504585,-300.0,0.000537,120]
[393921134,1763096504637,-300.0,0.000537,30]
[393921135,1763096504694,-1000.0,0.00053717,30]
[393921136,1763096504750,-1000.0,0.00053749,30]
[393921137,1763096504802,-1000.0,0.00053759,30]
[393921138,1763096504857,-500.0,0.00053767,90]
[393921139,1763096504909,-1000.0,0.00053779,30]
[393921140,1763096504964,-1000.0,0.0005378,30]
[393921141,1763096505016,-300.0,0.000538,120]
[393921142,1763096505072,-150.0,0.000538,120]
[393921143,1763096505141,-300.0,0.000538,120]
[393921144,1763096505193,-329.0,0.00053804,120]
[393921145,1763096505243,-943.0,0.00053833,30]
[393921146,1763096505294,-300.0,0.000539,31]
[393921147,1763096505346,-300.0,0.000539,120]
[393921148,1763096505402,-300.0,0.000539,31]
[393921149,1763096505459,-300.0,0.000539,120]
[393921150,1763096505514,-430.51389495,0.000539,31]
[393921151,1763096505566,-400.0,0.000539,120]
[393921152,1763096505617,-1000.0,0.00053901,30]
[393921153,1763096505673,-1000.0,0.00053963,30]
[393921154,1763096505724,-200.0,0.00053999,120]
[393921155,1763096505778,-900.0,0.00054,60]
[393921157,1763096505832,-152.0,0.00054,120]
[393921158,1763096505888,-154.0,0.00054,120]
[393921159,1763096505936,-954.764814,0.00054,120]
[393921160,1763096505984,-754.41,0.00054,50]
[393921161,1763096506032,-1289.2978385,0.00054,120]
[393921162,1763096506087,-1000000.0,0.00054,120]
[393921163,1763096506139,-500.0,0.00054041,90]
[393921164,1763096506192,-385.28215579,0.000541,30]
[393921165,1763096506247,-1000.0,0.00054288,120]
[393921166,1763096506296,-1000.0,0.00054299,120]
[393921167,1763096506345,-1000.0,0.0005431,120]
[393921168,1763096506394,-500.0,0.00054315,90]
[393921169,1763096506444,-1000.0,0.00054321,120]
[393921170,1763096506498,-150.0,0.00054326,120]
[393921171,1763096506551,-1000.0,0.00054332,120]
[393921172,1763096506605,-1000.0,0.00054343,120]
[393921173,1763096506657,-1000.0,0.00054354,120]
[393921174,1763096506726,-1000.0,0.00054365,120]
[393921175,1763096506785,-1000.0,0.00054376,120]
[393921176,1763096506841,-943.0,0.00054383,30]
[393921177,1763096507396,-1000.0,0.00054386,120]
[393921178,1763096507446,-1000.0,0.00054397,120]
[393921179,1763096507498,-1000.0,0.00054408,120]
[393921180,1763096507550,-1000.0,0.00054419,120]
[393921181,1763096507613,-1000.0,0.0005443,120]
[393921182,1763096507665,-1000.0,0.00054441,120]
[393921183,1763096507716,-2167.7455,0.00054444,30]
[393921184,1763096507764,-1000.0,0.00054452,120]
[393921185,1763096507813,-1000.0,0.00054463,120]
[393921186,1763096507862,-1000.0,0.00054474,120]
[393921187,1763096507911,-1000.0,0.00054474,120]
[393921188,1763096507960,-1000.0,0.00054485,120]
[393921189,1763096508011,-1000.0,0.00054485,120]
[393921190,1763096508061,-1000.0,0.00054496,120]
[393921191,1763096508112,-1000.0,0.00054496,120]
[393921192,1763096508169,-218653.75042519,0.000545,120]
[393921201,1763096540771,506.19968719,0.00041098,30]
[393921207,1763096578840,-193.45975327,0.000372,120]
[393921208,1763096578892,-193.45975327,0.000372,120]
[393921209,1763096578947,-193.45975327,0.000372,120]
[393921210,1763096579019,-151.0,0.00041098,120]
[393921211,1763096579070,-301.999999,0.00041098,120]
[393921212,1763096579143,-712.81,0.00046098,30]
[393921213,1763096579197,-866.37020519,0.0004825,30]
[393921214,1763096579247,-5517.0,0.000504,120]
[393921215,1763096579297,-5517.0,0.000514,120]
[393921216,1763096579349,-150.0,0.00053228,30]
[393921217,1763096579398,-150.0,0.0005329,30]
[393921218,1763096579446,-164.002,0.00053833,30]
[393921219,1763096579494,-2596.0,0.00054,30]
[393921220,1763096579543,-7381.83543909,0.00054348,120]
[393921221,1763096579593,-31346.24957481,0.000545,120]
[393921222,1763096579642,-1000.00000099,0.000545,120]
[393921223,1763096579694,-500.0,0.000545,50]
[393921224,1763096579747,-5000.0,0.000545,120]
[393921225,1763096579799,-1000.0,0.00054506,120]
[393921226,1763096579845,-1000.0,0.00054506,120]
[393921227,1763096579891,-1000.0,0.00054517,120]
[393921228,1763096579939,-1000.0,0.00054517,120]
[393921229,1763096579986,-2125.3574137,0.000546,120]
[393921230,1763096580034,-266.58,0.000546,90]
[393921231,1763096580083,-446.33356462,0.00054794,120]
[393921232,1763096580139,-500.0,0.00054794,120]
[393921233,1763096580197,-776.67252039,0.00054794,30]
[393921234,1763096580253,-500.0,0.00054794,120]
[393921235,1763096580308,-500.0,0.00054794,120]
[393921236,1763096580360,-570.6,0.00054794,120]
[393921237,1763096580408,-570.6,0.00054794,120]
[393921238,1763096580458,-570.6,0.00054794,120]
[393921239,1763096580506,-570.6,0.00054794,120]
[393921240,1763096580553,-570.6,0.00054794,120]
[393921241,1763096580601,-570.6,0.00054794,120]
[393921242,1763096580649,-570.6,0.00054794,120]
[393921243,1763096580891,-570.6,0.00054794,120]
[393921244,1763096580946,-570.6,0.00054794,120]
[393921245,1763096580992,-570.6,0.00054794,120]
[393921246,1763096581041,-570.6,0.00054794,120]
[393921247,1763096581091,-570.6,0.00054794,120]
[393921248,1763096581138,-570.6,0.00054794,120]
[393921249,1763096581182,-570.6,0.00054794,120]
[393921250,1763096581233,-570.6,0.00054794,120]
[393921251,1763096581280,-570.6,0.00054794,120]
[393921252,1763096581327,-570.6,0.00054794,120]
[393921253,1763096581383,-570.6,0.00054794,120]
[393921254,1763096581433,-570.6,0.00054794,120]
[393921255,1763096581489,-570.6,0.00054794,120]
[393921256,1763096581536,-570.6,0.00054794,120]
[393921257,1763096581581,-570.6,0.00054794,120]
[393921258,1763096581626,-570.6,0.00054794,120]
[393921259,1763096581669,-570.62161232,0.00054794,120]
[393921260,1763096581717,-150.0,0.00054795,120]
[393921261,1763096581762,-150.0,0.00054795,120]
[393921262,1763096581808,-150.0,0.00054795,120]
[393921263,1763096581855,-150.0,0.00054795,120]
[393921264,1763096581902,-150.0,0.00054795,120]
[393921265,1763096581948,-150.0,0.00054795,120]
[393921266,1763096581995,-150.0,0.00054795,120]
[393921267,1763096582040,-150.0,0.00054795,120]
[393921268,1763096582085,-150.0,0.00054795,120]
[393921269,1763096582132,-150.0,0.00054795,120]
[393921270,1763096582178,-150.0,0.00054795,120]
[393921271,1763096582230,-150.0,0.00054795,120]
[393921272,1763096582292,-150.0,0.00054795,120]
[393921273,1763096582335,-164.82982858,0.00054795,120]
[393921274,1763096582376,-150.0,0.00054795,120]
[393921275,1763096582417,-150.0,0.00054795,120]
[393921276,1763096582461,-150.0,0.00054795,120]
[393921277,1763096582506,-500.0,0.00054795,35]